bitfinex-derivatives/quotes_ETHF0:USTF0_20240927
["timestamp","ask_amount","ask_price","bid_price","bid_amount"]
[1727450396578,2.86150469,2690.3,2690.2,3.2078]
[1727450396781,3.23307469,2690.3,2690.2,3.2078]
[1727450397776,2.86150469,2690.3,2690.2,3.2078]
[1727450398178,3.23307469,2690.3,2690.2,3.2078]
[1727450398380,2.86150469,2690.3,2689.6,7.80664438]
[1727450398587,2.86150469,2689.7,2689.6,3.57946]
[1727450398881,2.86150469,2689.7,2689.6,0.37166]
[1727450399583,2.86150469,2689.7,2689.6,3.57946]
[1727450399975,2.86150469,2689.7,2689.6,4.50864]
[1727450401082,4.4867,2690.4,2689.6,9.2078]
[1727450401291,1.16776,2690.4,2690.1,0.37158]
[1727450401474,0.37157,2690.3,2690.1,0.37158]
[1727450401680,2.86150469,2690.2,2690.1,0.37158]
[1727450402489,2.86150469,2690.2,2690.1,0.77888]
[1727450404788,2.86150469,2690.2,2690.1,1.70788]
[1727450404985,2.86150469,2690.2,2690.1,0.77888]
[1727450405689,2.86150469,2690.2,2690.1,1.70788]
[1727450406085,2.86150469,2690.2,2690.1,2.63688]
[1727450406286,0.7779,2690.8,2690.7,0.37152]
[1727450406688,3.63940469,2690.8,2690.7,3.27152]
[1727450406886,2.86150469,2690.8,2690.7,3.27152]
[1727450407092,2.86150469,2690.8,2690.7,4.57442]
[1727450407294,0.768,2691.3,2691.2,0.37145]
[1727450407687,0.768,2691.3,2690.9,6.1078]
[1727450407688,4.00094469,2691.3,2690.9,6.1078]
[1727450407887,2.86150469,2691.0,2690.9,6.1078]
[1727450408091,2.86150469,2691.0,2690.9,6.47929]
[1727450408996,2.86150469,2691.0,2690.7,0.3741]
[1727450409195,2.9,2691.2,2690.6,0.37153]
[1727450409196,2.86150469,2690.8,2690.6,0.37153]
[1727450409392,4.00102469,2690.7,2690.4,0.37155]
[1727450409691,1.13952,2690.7,2690.4,0.37155]
[1727450409897,2.86150469,2690.5,2690.4,0.37155]
[1727450410288,2.86150469,2690.5,2690.2,0.37158]
[1727450410595,2.86150469,2690.3,2690.1,3.57939]
[1727450410785,1.69681,2690.7,2690.1,3.57939]
[1727450410786,0.3884,2690.5,2690.2,0.37158]
[1727450410989,2.86150469,2690.2,2690.1,3.5794]
[1727450411192,2.86150469,2690.2,2690.1,3.2078]
[1727450411694,3.23309469,2690.2,2689.8,2.9]
[1727450411898,2.86150469,2689.9,2689.8,0.37164]
[1727450412296,3.23313469,2689.9,2689.6,3.2078]
[1727450412490,2.86150469,2689.7,2689.6,3.2078]
[1727450412991,2.86150469,2689.7,2689.6,3.57947]
[1727450413401,2.86150469,2689.7,2689.6,3.2078]
[1727450413798,2.86150469,2689.7,2689.6,3.57947]
[1727450415101,2.86150469,2689.7,2689.6,3.96307]
[1727450415302,0.4035,2690.5,2689.8,0.92911]
[1727450415598,3.2078,2690.6,2690.5,0.37154]
[1727450415599,0.3968,2690.6,2690.5,0.37154]
[1727450415803,3.25830469,2690.6,2690.5,0.37154]
[1727450415999,2.86150469,2690.6,2690.5,0.37154]
[1727450416206,2.86150469,2690.6,2690.5,3.57934]
[1727450416591,2.86150469,2690.6,2690.4,2.9]
[1727450416907,2.86150469,2690.5,2690.4,3.27155]
[1727450417099,2.86150469,2690.5,2690.4,0.37155]
[1727450419906,2.86150469,2690.5,2690.4,0.37156]
[1727450420605,2.86150469,2690.5,2690.2,3.2078]
[1727450420800,2.86150469,2690.5,2689.9,3.2078]
[1727450420801,3.23308469,2690.3,2689.9,3.2078]
[1727450421107,2.86150469,2690.0,2689.9,3.57942]
[1727450421304,2.86150469,2690.0,2689.9,3.2078]
[1727450421703,2.86150469,2690.0,2689.9,3.57943]
[1727450422204,2.86150469,2690.0,2689.9,0.37163]
[1727450422400,2.86150469,2690.0,2689.8,0.37163]
[1727450422605,0.385,2689.9,2689.8,0.37163]
[1727450422797,3.24650469,2689.9,2689.8,0.37163]
[1727450424707,6.01771849,2690.6,2689.8,2.9]
[1727450424904,2.86150469,2690.3,2690.2,3.2078]
[1727450425200,0.385,2690.5,2690.2,3.2078]
[1727450425201,2.86150469,2690.5,2690.4,0.37156]
[1727450425409,2.86150469,2690.5,2690.4,3.27156]
[1727450425802,2.86150469,2690.5,2690.4,4.53672622]
[1727450426001,2.86150469,2690.5,2690.4,3.65796]
[1727450426201,2.86150469,2690.5,2690.4,4.92312616]
[1727450426403,2.86150469,2690.5,2690.4,4.92313787]
[1727450426610,2.30403189,2690.5,2690.4,6.37999286]
[1727450427316,2.30403189,2690.5,2690.4,3.65796]
[1727450427609,2.30403189,2690.5,2690.4,0.37156]
[1727450427909,2.30403189,2690.5,2690.0,1.45687455]
[1727450428108,2.30403189,2690.1,2690.0,1.82848455]
[1727450428305,2.30403189,2690.1,2690.0,1.63444339]
[1727450428613,2.30403189,2690.1,2690.0,0.37161]
[1727450428910,2.30403189,2690.1,2689.7,1.45687455]
[1727450429109,2.30403189,2689.8,2689.7,0.37165]
[1727450429314,2.30403189,2689.8,2689.7,1.63461891]
[1727450429705,2.30403189,2689.8,2689.7,3.09149346]
[1727450430509,2.30403189,2689.8,2689.7,1.63461891]
[1727450430710,2.30403189,2689.8,2689.7,3.09149346]
[1727450430910,2.30403189,2689.8,2689.7,4.02056116]
[1727450431109,2.30403189,2689.8,2689.7,4.42356116]
[1727450431822,2.30403189,2689.8,2689.7,4.42538249]
[1727450433112,0.7512,2690.4,2690.2,0.37158]
[1727450433415,2.30403189,2690.3,2690.2,0.37158]
[1727450436411,2.30403189,2690.3,2690.1,0.37159]
[1727450436717,0.37158,2690.3,2690.0,0.3716]
[1727450436906,0.37159,2690.2,2689.9,0.37162]
[1727450437110,2.30403189,2690.0,2689.9,0.37163]
[1727450440417,2.30403189,2690.0,2689.8,3.57943]
[1727450440623,2.69513189,2689.9,2689.8,3.2078]
[1727450441126,2.69513189,2689.9,2689.8,3.57944]
[1727450441306,2.30403189,2689.9,2689.8,4.50855]
[1727450441514,0.3763,2690.4,2689.8,11.92925898]
[1727450441816,0.3911,2690.6,2690.5,0.37154]
[1727450442208,2.69513189,2690.6,2690.5,0.37154]
[1727450442611,2.69513189,2690.6,2690.3,3.2078]
[1727450442824,2.30403189,2690.4,2690.3,0.37157]
[1727450444213,2.30403189,2690.4,2690.0,1.45859727]
[1727450444409,0.37156,2690.4,2690.2,0.37158]
[1727450444609,0.76264,2690.6,2690.3,0.37157]
[1727450444810,0.3911,2690.6,2690.3,0.37157]
[1727450445024,2.30403189,2690.4,2690.3,0.37157]
[1727450445326,2.30403189,2690.4,2690.2,0.37157]
[1727450445515,2.30403189,2690.1,2690.0,0.37161]
[1727450446118,2.30403189,2690.1,2690.0,3.09313106]
[1727450446717,2.30403189,2690.1,2690.0,4.02217106]
[1727450447020,0.3911,2690.6,2690.1,0.92899]
[1727450447222,0.3911,2690.6,2690.5,0.37154]
[1727450447624,2.69513189,2690.6,2690.5,0.37154]
[1727450448525,0.37155,2690.5,2690.3,0.78096]
[1727450448720,2.30403189,2690.4,2690.3,2.63883]
[1727450448923,2.30403189,2690.4,2690.3,3.90174066]
[1727450449124,2.30403189,2690.4,2690.3,5.36033793]
[1727450449620,0.8012,2691.0,2690.9,0.37149]
[1727450449828,2.30403189,2691.0,2690.9,3.2078]
[1727450450121,2.30403189,2691.0,2690.9,4.50802]
[1727450450524,2.30403189,2691.0,2690.9,4.90102]
[1727450450718,2.30403189,2691.0,2690.9,3.97229]
[1727450450916,0.4015,2691.4,2691.2,0.37143]
[1727450451326,2.30403189,2691.3,2691.2,0.37143]
[1727450451529,2.30403189,2691.3,2690.9,3.6008]
[1727450451727,2.30403189,2691.0,2690.9,3.97229]
[1727450451922,2.30403189,2691.0,2690.9,3.57929]
[1727450453424,2.30403189,2691.0,2690.9,3.2078]
[1727450453815,2.30403189,2691.0,2690.5,0.4102]
[1727450453816,0.37149,2690.9,2690.5,3.57934]
[1727450454016,2.30403189,2690.6,2690.5,3.2078]
[1727450454420,2.30403189,2690.6,2690.3,0.37156]
[1727450454615,0.37152,2690.7,2690.3,0.37156]
[1727450454823,0.37152,2690.7,2690.2,1.86186593]
[1727450454824,0.37151,2690.8,2690.5,3.2078]
[1727450455126,1.1761,2690.9,2690.5,3.57934]
[1727450455127,2.30403189,2690.6,2690.5,3.57934]
[1727450458636,1.93971849,2691.3,2690.5,3.57934]
[1727450458637,4.44942,2691.4,2691.0,0.37146]
[1727450458838,0.3714,2691.1,2691.0,0.37146]
[1727450459032,2.67543189,2691.1,2691.0,0.37146]
[1727450459231,2.67543189,2691.1,2690.8,3.2078]
[1727450459422,2.67543189,2691.1,2690.5,3.2078]
[1727450459423,2.30403189,2690.9,2690.5,3.2078]
[1727450459627,0.74287,2691.1,2690.8,0.37149]
[1727450459826,2.30403189,2690.9,2690.8,0.37149]
[1727450460532,2.30403189,2690.9,2690.8,3.57929]
[1727450460930,2.30403189,2690.9,2690.8,4.50805]
[1727450461740,2.30403189,2690.9,2690.8,3.57929]
[1727450462437,2.30403189,2690.9,2690.8,4.50805]
[1727450462628,0.3885,2691.3,2691.2,0.37145]
[1727450463039,2.69253189,2691.3,2691.2,0.37145]
[1727450465632,2.69253189,2691.3,2691.1,3.57925]
[1727450465831,2.30403189,2691.2,2691.0,0.37146]
[1727450466030,2.30403189,2691.2,2690.9,0.3747]
[1727450466031,2.30403189,2691.0,2690.9,0.37148]
[1727450468242,2.30403189,2691.0,2690.9,1.30021]
[1727450468434,0.3885,2691.3,2691.2,0.37145]
[1727450468635,0.3839,2691.6,2691.5,0.3714]
[1727450468836,0.399,2691.8,2691.5,3.2078]
[1727450469036,2.70303189,2691.8,2691.7,3.27138]
[1727450469835,0.087,2692.5,2692.3,0.37129]
[1727450470139,0.399,2692.5,2692.3,0.37129]
[1727450470341,2.30403189,2692.4,2692.1,0.408]
[1727450470536,0.399,2692.5,2692.1,0.408]
[1727450470737,0.399,2692.5,2692.1,0.77932]
[1727450470738,2.30403189,2692.2,2692.1,0.77932]
[1727450471238,0.37,2692.7,2692.1,3.308]
[1727450471439,0.37,2692.7,2692.5,0.37126]
[1727450471744,0.37,2692.7,2692.3,3.2078]
[1727450471745,2.30403189,2692.6,2692.3,3.2078]
[1727450472040,2.30403189,2692.4,2692.3,3.57909]
[1727450472436,2.30403189,2692.4,2692.3,3.2078]
[1727450473236,2.30403189,2692.4,2692.1,0.408]
[1727450473540,2.30403189,2692.2,2691.7,3.2078]
[1727450473739,0.4036,2692.3,2691.7,3.2078]
[1727450473740,0.3839,2692.1,2691.8,0.37136]
[1727450473944,2.30403189,2691.9,2691.7,3.2078]
[1727450474149,2.30403189,2691.8,2691.7,3.57918]
[1727450476944,2.30403189,2691.8,2691.7,3.2078]
[1727450477445,2.30403189,2691.8,2691.7,3.57918]
[1727450477933,2.30403189,2691.8,2691.7,3.2078]
[1727450478341,2.30403189,2691.8,2691.7,3.57918]
[1727450479241,0.3763,2692.2,2692.0,0.37133]
[1727450479451,0.4036,2692.3,2692.2,0.37131]
[1727450479642,2.70763189,2692.3,2692.2,0.37131]
[1727450479841,4.4543,2692.5,2692.1,0.4094]
[1727450480044,4.4543,2692.5,2692.4,0.37128]
[1727450480339,0.3763,2692.5,2692.4,0.37128]
[1727450480540,2.68033189,2692.5,2692.4,0.37128]
[1727450480947,0.3763,2692.5,2692.4,0.37128]
[1727450481244,2.68033189,2692.5,2692.4,0.37128]
[1727450482047,2.68033189,2692.5,2692.3,3.2078]
[1727450482247,2.30403189,2692.4,2692.3,3.2078]
[1727450482447,2.30403189,2692.4,2692.3,3.57909]
[1727450482842,2.30403189,2692.4,2692.0,3.2078]
[1727450483049,0.3763,2692.5,2692.0,3.2078]
[1727450483050,2.30403189,2692.1,2692.0,3.2078]
[1727450483242,0.37134,2692.0,2691.6,3.2078]
[1727450483446,2.30403189,2691.7,2691.6,3.2078]
[1727450483647,2.30403189,2691.7,2691.4,1.16811]
[1727450483846,2.30403189,2691.5,2691.3,0.37143]
[1727450484062,2.30403189,2691.4,2691.3,0.37143]
[1727450486550,0.3964,2691.9,2691.3,6.0]
[1727450486743,2.30403189,2691.9,2691.8,0.37136]
[1727450488843,2.30403189,2691.9,2691.7,0.37137]
[1727450489051,2.30403189,2691.8,2691.7,1.29982]
[1727450489443,0.7482,2692.2,2691.7,1.29982]
[1727450489444,0.7482,2692.2,2692.1,0.37132]
[1727450489655,0.3938,2692.7,2692.5,0.37125]
[1727450489843,1.142,2692.7,2692.5,0.37125]
[1727450490048,2.30403189,2692.6,2692.5,0.37125]
[1727450490447,2.30403189,2692.6,2692.5,4.50723]
[1727450490645,2.30403189,2692.6,2692.5,3.57905]
[1727450492560,0.7482,2693.0,2692.5,3.2078]
[1727450492751,2.30403189,2692.8,2692.5,3.2078]
[1727450492947,2.30403189,2692.8,2692.7,0.37124]
[1727450494359,2.30403189,2692.8,2692.7,3.27124]
[1727450496058,2.30403189,2692.8,2692.6,0.37124]
[1727450496253,0.7482,2693.0,2692.5,6.47906]
[1727450496254,2.30403189,2692.6,2692.5,6.47906]
[1727450499762,2.30403189,2692.6,2692.5,7.40724]
[1727450499964,2.30403189,2692.6,2692.5,6.47906]
[1727450501172,2.30403189,2692.6,2691.8,0.087]
[1727450501173,3.2078,2692.6,2691.8,0.087]
[1727450501365,3.2078,2692.6,2691.3,4.15875405]
[1727450501366,3.2078,2692.2,2691.5,7.43341]
[1727450501665,3.6601,2692.5,2691.5,7.43341]
[1727450501666,0.3992,2692.1,2692.0,3.27134]
[1727450501857,0.3992,2692.4,2692.0,2.9]
[1727450502466,0.3992,2692.4,2692.3,0.37129]
[1727450502666,0.3846,2692.5,2692.4,0.37128]
[1727450503158,0.3846,2692.5,2692.1,1.16212]
[1727450503467,0.3846,2692.5,2692.1,0.37132]
[1727450503468,0.75587,2692.5,2692.1,0.37132]
[1727450503665,0.3812,2692.4,2692.0,0.37133]
[1727450503874,0.3812,2692.4,2692.1,0.37132]
[1727450504667,0.75249,2692.4,2692.0,0.37132]
[1727450504860,0.3812,2692.4,2692.0,0.37133]
[1727450505061,0.75249,2692.4,2692.0,0.37133]
[1727450505766,0.3812,2692.4,2692.1,0.37132]
[1727450505960,0.75248,2692.4,2692.1,0.37132]
[1727450506165,0.3812,2692.4,2692.1,0.37132]
[1727450506861,0.75248,2692.4,2692.1,0.37132]
[1727450507062,6.1078,2692.2,2691.4,0.92855]
[1727450507258,6.1078,2691.9,2691.4,0.37141]
[1727450507459,3.2078,2691.6,2691.0,3.7115]
[1727450507667,0.75401,2691.5,2691.2,0.37144]
[1727450507967,0.3826,2691.5,2691.3,0.37143]
[1727450508466,0.3826,2691.5,2691.4,0.37142]
[1727450508865,0.4034,2691.8,2691.4,7.54375]
[1727450509170,0.786,2692.1,2691.5,0.4078]
[1727450509465,0.37137,2691.8,2691.6,0.37138]
[1727450509672,3.57916,2691.9,2691.7,0.37137]
[1727450509975,3.57915,2691.9,2691.7,0.37137]
[1727450510158,0.37136,2691.8,2691.6,0.37138]
[1727450510360,3.2078,2691.9,2691.6,0.37138]
[1727450510559,0.37137,2691.8,2691.6,0.37138]
[1727450510767,0.3827,2691.8,2691.7,0.37138]
[1727450510964,3.2078,2691.9,2691.8,0.37136]
[1727450511155,0.786,2692.1,2692.0,0.37134]
[1727450511156,0.4034,2692.1,2692.0,0.37134]
[1727450511361,0.4034,2692.1,2692.0,1.29969]
[1727450511555,3.2078,2692.3,2692.2,0.37131]
[1727450512267,0.37131,2692.2,2692.0,0.37132]
[1727450512465,3.5791,2692.3,2691.8,0.3867]
[1727450512868,3.2078,2692.3,2692.1,0.37132]
[1727450513060,3.2078,2692.3,2692.2,0.37131]
[1727450514670,3.2078,2692.3,2691.8,0.3867]
[1727450514870,3.2078,2692.3,2692.1,0.37132]
[1727450515169,3.2078,2692.3,2692.0,0.37134]
[1727450515566,3.2078,2692.3,2691.8,0.3867]
[1727450515768,3.2078,2692.3,2691.7,0.3762]
[1727450516160,3.2078,2692.3,2692.0,0.37134]
[1727450517064,3.2078,2692.3,2692.0,0.37133]
[1727450517270,3.5791,2692.3,2692.0,0.37133]
[1727450517459,0.37132,2692.2,2691.9,0.37134]
[1727450517660,0.37132,2692.1,2691.9,0.37134]
[1727450517860,3.2078,2692.3,2691.9,0.37135]
[1727450518168,0.3962,2692.0,2691.9,0.37135]
[1727450518674,0.3962,2692.0,2691.7,1.14606]
[1727450518969,3.604,2692.0,2691.7,0.3762]
[1727450519161,3.604,2692.0,2691.8,0.37136]
[1727450519467,0.3962,2692.0,2691.8,0.37136]
[1727450520271,3.2078,2692.3,2691.7,0.3762]
[1727450520469,0.3929,2692.2,2691.7,0.3762]
[1727450520669,0.3929,2692.2,2692.0,0.37133]
[1727450520865,0.76421,2692.2,2691.8,0.37135]
[1727450521169,0.3929,2692.2,2691.8,0.37136]
[1727450521366,0.37132,2692.1,2691.8,0.37136]
[1727450521767,0.76422,2692.2,2691.8,0.37136]
[1727450522163,0.3929,2692.2,2691.5,3.2078]
[1727450522367,3.2078,2691.7,2691.2,0.97086444]
[1727450522574,1.1716,2691.6,2691.3,0.37143]
[1727450522767,1.1716,2691.6,2691.1,0.3725]
[1727450523069,1.1716,2691.6,2691.3,0.37143]
[1727450523477,4.8868,2691.6,2691.3,0.37143]
[1727450523982,4.8868,2691.6,2691.0,3.2078]
[1727450523983,4.8868,2691.6,2691.4,0.37142]
[1727450524269,1.1716,2691.6,2691.5,0.3714]
[1727450524472,4.49831,2692.2,2691.5,0.92851]
[1727450524473,3.2078,2692.2,2691.5,0.92851]
[1727450524673,3.2078,2692.2,2691.9,0.37134]
[1727450524674,0.7774,2692.1,2691.9,0.37134]
[1727450525062,4.4918,2692.1,2691.9,0.37134]
[1727450525266,4.4918,2692.1,2691.6,1.30098]
[1727450525472,0.7774,2692.1,2691.9,0.37134]
[1727450525670,1.14872,2692.1,2691.6,0.3725]
[1727450525864,0.7774,2692.1,2692.0,0.37134]
[1727450527872,4.4918,2692.1,2691.6,3.5803]
[1727450528077,0.37139,2691.7,2691.2,1.3241]
[1727450528374,3.57919,2691.7,2691.5,0.37139]
[1727450528567,0.4088,2691.6,2691.5,0.37139]
[1727450529172,3.2078,2692.0,2691.5,0.92852]
[1727450529377,0.4088,2691.8,2691.7,0.37137]
[1727450529575,4.124,2691.8,2691.7,0.37137]
[1727450529982,4.124,2691.8,2691.3,3.2078]
[1727450530273,3.98679,2691.7,2691.5,0.3714]
[1727450530677,3.7152,2691.6,2691.5,0.3714]
[1727450530977,0.4076,2691.7,2691.6,0.37139]
[1727450531183,0.4076,2691.7,2691.5,0.37139]
[1727450531381,0.4076,2691.7,2691.6,0.37139]
[1727450531583,0.4088,2691.8,2691.7,0.37138]
[1727450531980,0.3962,2692.1,2692.0,0.37134]
[1727450533279,0.4039,2692.3,2691.9,0.92837]
[1727450533280,0.4039,2692.3,2692.2,0.37131]
[1727450533479,4.1183,2692.3,2692.2,0.37131]
[1727450533784,0.4039,2692.3,2692.2,0.37131]
[1727450534278,0.4009,2692.4,2692.3,0.37129]
[1727450535081,4.1153,2692.4,2692.3,0.37129]
[1727450536180,0.4009,2692.4,2692.3,0.37129]
[1727450543082,3.98296,2692.6,2692.5,0.37127]
[1727450543282,3.6117,2692.6,2692.5,0.37127]
[1727450543793,0.37127,2692.5,2692.4,0.37128]
[1727450543986,0.37128,2692.4,2692.3,0.37129]
[1727450544185,0.37128,2692.5,2692.3,0.37129]
[1727450544387,6.5117,2692.6,2692.0,3.2078]
[1727450544689,2.9,2692.4,2692.1,0.37132]
[1727450544879,0.3713,2692.3,2692.1,0.37132]
[1727450545183,4.13606,2692.3,2691.8,1.74096444]
[1727450545381,3.57916,2691.9,2691.7,1.34223444]
[1727450545585,0.3863,2691.8,2691.7,0.37138]
[1727450545786,0.3863,2691.8,2691.5,0.401]
[1727450546090,0.37139,2691.7,2691.5,0.3714]
[1727450546296,0.3863,2691.8,2691.4,0.97086444]
[1727450546587,0.3863,2691.8,2691.5,0.3714]
[1727450546788,0.3863,2691.8,2691.4,0.97086444]
[1727450547089,0.75766,2691.8,2691.4,0.97086444]
[1727450547299,0.3863,2691.8,2691.6,0.37139]
[1727450547489,0.75767,2691.8,2691.5,0.3714]
[1727450547794,3.2863,2691.8,2691.4,0.37141]
[1727450547984,0.37138,2691.7,2691.3,0.401]
[1727450548292,0.3888,2691.6,2691.5,0.3714]
[1727450548789,4.104,2691.6,2691.5,0.3714]
[1727450549088,3.5941,2691.8,2691.7,0.37138]
[1727450549299,7.3093,2691.8,2691.3,2.30044444]
[1727450549591,7.3093,2691.8,2691.6,0.37138]
[1727450549592,3.5941,2691.8,2691.6,0.37138]
[1727450549896,3.5941,2691.8,2691.7,0.37138]
[1727450550286,7.68066,2691.8,2691.6,0.37138]
[1727450550483,3.7152,2691.7,2691.4,0.97086444]
[1727450550693,0.3863,2691.8,2691.3,1.37186444]
[1727450551196,0.3863,2691.8,2691.7,0.37138]
[1727450551494,0.3888,2692.0,2691.9,0.37135]
[1727450551897,3.2078,2692.2,2691.8,0.92841]
[1727450552195,2.77723248,2692.5,2692.3,0.37129]
[1727450552196,0.3984,2692.4,2692.3,0.37129]
[1727450552386,7.38408,2692.4,2692.2,0.3713]
[1727450552586,7.38408,2692.4,2691.9,0.4019]
[1727450552587,0.3713,2692.3,2692.1,0.37132]
[1727450552794,3.27131,2692.2,2692.0,0.37133]
[1727450552998,2.9,2692.2,2692.0,0.37133]
[1727450553188,2.9,2692.2,2692.0,0.37134]
[1727450553388,6.98571,2692.2,2691.9,0.77324]
[1727450553590,2.9,2692.2,2692.0,0.37133]
[1727450554006,6.6144,2692.2,2692.1,0.37132]
[1727450554204,2.9,2692.2,2692.1,0.37132]
[1727450554503,6.6144,2692.2,2691.9,0.4019]
[1727450554702,3.27131,2692.2,2691.9,0.77324]
[1727450554898,3.2078,2692.3,2692.2,0.37131]
[1727450555596,3.2078,2692.3,2691.9,1.37276444]
[1727450555797,3.2078,2692.3,2691.9,0.4019]
[1727450556005,3.2078,2692.3,2692.2,0.37131]
[1727450556204,3.2984,2692.4,2692.2,0.37131]
[1727450556502,3.2984,2692.4,2692.3,0.37129]
[1727450557003,7.0128,2692.4,2692.3,0.37129]
[1727450557207,3.2984,2692.4,2692.3,0.37129]
[1727450557408,7.0128,2692.4,2692.3,0.37129]
[1727450558201,3.2984,2692.4,2692.3,0.37129]
[1727450559410,3.2984,2692.4,2692.2,0.3934]
[1727450559614,3.2984,2692.4,2692.3,0.37129]
[1727450560013,7.0128,2692.4,2692.3,0.37129]
[1727450560209,0.3984,2692.4,2692.3,0.37129]
[1727450560505,0.3984,2692.4,2692.1,0.9283]
[1727450560506,7.3206,2692.4,2692.1,1.34218444]
[1727450560714,7.3206,2692.4,2691.9,5.06826593]
[1727450560715,6.6144,2692.3,2691.9,1.34220444]
[1727450560901,3.57912,2692.1,2691.9,0.37134]
[1727450561107,0.3777,2692.0,2691.9,0.37134]
[1727450561315,0.7599,2692.0,2691.9,0.37134]
[1727450561815,4.4743,2692.0,2691.9,0.37134]
[1727450562022,4.4743,2692.0,2691.9,0.37135]
[1727450563115,0.7599,2692.0,2691.9,0.37135]
[1727450563307,0.7599,2692.0,2691.6,2.11096444]
[1727450563308,0.7599,2692.0,2691.8,0.37136]
[1727450563509,0.7599,2692.0,2691.9,0.37135]
[1727450563710,0.7599,2692.0,2691.8,0.37136]
[1727450564420,0.7599,2692.0,2691.8,1.34222444]
[1727450564717,0.7599,2692.0,2691.9,0.37135]
[1727450565819,0.3822,2692.0,2691.9,0.37135]
[1727450566515,3.2078,2692.2,2691.9,0.37134]
[1727450566818,1.12881,2692.3,2691.9,0.37134]
[1727450567322,1.93971849,2692.4,2692.1,3.2078]
[1727450567625,0.3855,2692.6,2692.5,0.37127]
[1727450567819,5.51951849,2692.7,2692.6,0.37125]
[1727450567820,0.372,2692.7,2692.6,0.37125]
[1727450568025,5.14751849,2692.9,2692.7,0.37123]
[1727450568026,5.53171849,2692.9,2692.7,0.37123]
[1727450568322,3.592,2692.9,2692.7,0.37124]
[1727450568715,7.67681,2692.9,2692.7,0.37124]
[1727450568908,3.592,2692.9,2692.8,0.37123]
[1727450569315,7.67681,2692.9,2692.7,0.37123]
[1727450569614,3.592,2692.9,2692.6,0.37125]
[1727450569818,3.96322,2692.9,2692.7,0.37123]
[1727450570216,7.67682,2692.9,2692.7,0.37123]
[1727450570624,7.67682,2692.9,2692.6,0.37124]
[1727450570818,3.96322,2692.9,2692.7,0.37123]
[1727450571019,0.37123,2692.8,2692.6,0.37125]
[1727450571221,3.82808,2692.8,2692.4,0.37128]
[1727450571420,3.82808,2692.8,2692.3,0.37128]
[1727450571421,0.37126,2692.6,2692.3,0.37128]
[1727450571718,0.37126,2692.6,2692.1,0.37131]
[1727450571719,4.13595,2692.6,2692.1,0.37131]
[1727450571927,2.9,2692.4,2692.2,0.3713]
[1727450572115,2.9,2692.4,2692.3,3.2078]
[1727450572316,3.95648,2692.5,2692.2,0.3713]
[1727450572521,0.37128,2692.4,2691.9,1.34816444]
[1727450572824,3.95648,2692.5,2692.2,0.37131]
[1727450573227,0.74868,2692.5,2692.2,0.37131]
[1727450573527,0.3774,2692.5,2692.4,0.37128]
[1727450574225,0.3774,2692.5,2692.3,0.37129]
[1727450574421,0.3774,2692.5,2692.1,0.97086444]
[1727450574422,0.3774,2692.5,2692.4,0.37128]
[1727450575019,3.2078,2692.6,2692.5,0.37127]
[1727450576120,0.77413,2692.8,2692.4,0.4088]
[1727450576320,0.77413,2692.8,2692.5,0.37126]
[1727450576722,0.4029,2692.8,2692.6,0.37125]
[1727450576921,0.77413,2692.8,2692.6,0.37125]
[1727450577327,0.4029,2692.8,2692.7,0.37124]
[1727450577824,4.1165,2692.8,2692.7,0.37124]
[1727450578033,0.4029,2692.8,2692.7,0.37124]
[1727450578528,4.078,2692.9,2692.8,0.37123]
[1727450578826,0.7853,2693.0,2692.9,0.37121]
[1727450579926,0.7853,2693.0,2692.5,0.92815]
[1727450579927,3.08447849,2693.3,2693.1,0.37118]
[1727450580124,3.7128,2693.2,2693.1,0.37118]
[1727450580618,4.08397,2693.2,2693.0,0.37119]
[1727450580825,0.37119,2693.1,2692.9,0.37121]
[1727450581026,2.9,2693.2,2692.9,0.3712]
[1727450581329,2.9,2693.2,2692.7,0.3857]
[1727450581330,0.37119,2693.1,2693.0,0.3712]
[1727450581529,3.27118,2693.2,2693.0,0.3712]
[1727450581731,2.9,2693.2,2692.9,0.37121]
[1727450582031,3.2078,2693.1,2692.7,0.3857]
[1727450582238,3.2078,2693.1,2692.9,0.37121]
[1727450582535,6.47898,2693.2,2693.0,0.37119]
[1727450582833,6.1078,2693.2,2693.1,0.37118]
[1727450583218,0.37119,2693.1,2693.0,0.37119]
[1727450583419,6.47898,2693.2,2693.0,0.37119]
[1727450583620,6.47898,2693.2,2693.1,0.37118]
[1727450583829,6.1078,2693.2,2693.1,0.37118]
[1727450584332,6.1078,2693.2,2692.9,0.3712]
[1727450584333,0.3712,2693.0,2692.9,0.3712]
[1727450584531,0.37119,2693.1,2693.0,0.3712]
[1727450584834,6.47898,2693.2,2693.1,0.37118]
[1727450585027,0.37119,2693.1,2693.0,0.37119]
[1727450585227,0.37121,2693.0,2692.9,0.3712]
[1727450588126,0.37123,2692.9,2692.8,0.37122]
[1727450588629,1.93971849,2693.4,2692.8,0.92807]
[1727450588935,0.37115,2693.4,2693.3,0.37114]
[1727450589134,0.37118,2693.3,2693.2,0.37116]
[1727450590232,0.37118,2693.3,2692.9,0.3712]
[1727450590233,0.3712,2693.0,2692.9,0.3712]
[1727450590434,4.08398,2693.3,2692.6,0.92813]
[1727450590435,0.37119,2693.1,2693.0,0.3712]
[1727450590629,3.2078,2693.1,2692.9,2.9]
[1727450590827,0.37114,2693.5,2693.4,0.37113]
[1727450591028,0.37113,2693.6,2693.5,0.37112]
[1727450591439,4.08393,2693.6,2693.5,0.37112]
[1727450591932,3.7128,2693.6,2693.2,1.72222]
[1727450592131,0.37112,2693.6,2693.5,0.37113]
[1727450592736,0.37114,2693.5,2693.4,0.37113]
[1727450593233,0.37112,2693.6,2693.5,0.37112]
[1727450595133,4.50654,2693.8,2693.2,1.72222]